[Event "Israel Team Ch Under 18"]
[Site "Jerusalem"]
[Date "2017.08.14"]
[Round "5"]
[White "Drori, Saar"]
[Black "Slobodiansky, Steven"]
[Result "1-0"]
[ECO "A45"]
[WhiteElo "2354"]
[BlackElo "1963"]
[Annotator "NA"]
[PlyCount "121"]
[EventDate "2017.??.??"]
[EventType "swiss"]
[EventCountry "ISR"]
[SourceTitle "playchess.com"]
[Source "ChessBase"]
[SourceQuality "1"]
[TimeControl "40/5400+30:1800+30"]

1. d4 {[%emt 0:40:28]} Nf6 {[%emt 0:40:57]} 2. g3 {[%emt 0:00:27]} g6 {[%emt 0:00:40]} 3. Bg2 {[%emt 0:00:26]} Bg7 {[%emt 0:00:25]} 4. e4 {[%emt 0:00:25]} d6 {[%emt 0:00:26]} 5. Ne2 {[%emt 0:00:34]} O-O {[%emt 0:01:13]} 6. O-O {[%emt 0:00:29]} e5 {[%emt 0:01:20]} 7. Nbc3 {[%emt 0:00:25]} Nc6 {[%emt 0:01:35]} 8. h3 {[%emt 0:01:59]} Ne8 {[%emt 0:06:46]} 9. Be3 {[%emt 0:02:24]} f5 {[%emt 0:02:08] B07: Pirc Defence: Miscellaneous Systems} (9... Kh8 10. Qd2 exd4 11. Nxd4 Bd7 12. Rad1 Nxd4 13. Bxd4 Bc6 14. Rfe1 Qd7 15. Bxg7+ Nxg7 16. e5 Bxg2 17. Kxg2 {1-0 (32) Franzoni,G (2455)-Ker,A (2295) Novi Sad 1990}) 10. exf5 {[%emt 0:05:27]} Bxf5 {[%emt 0:02:53]} 11. g4 {[%emt 0:01:22]} Bd7 {[%emt 0:02:39]} 12. d5 $146 {[%emt 0:01:39]} ({Predecessor:} 12. Qd2 Nf6 13. Bg5 Qc8 14. d5 Nd8 15. Ng3 Nf7 16. Bxf6 Bxf6 17. Nge4 {½-½ (52) Osorio Machado,J-Vieira,P Vitoria 1999}) 12... Ne7 {[%emt 0:00:46]} 13. Ne4 {[%emt 0:02:14]} h6 {[%emt 0:01:36]} 14. c4 {[%emt 0:03:38]} g5 {[%emt 0:11:30]} 15. Qd3 {[%emt 0:00:29]} Nf6 {[%emt 0:02:39]} 16. Nxf6+ {[%emt 0:00:31]} Rxf6 {[%emt 0:00:57]} 17. Ng3 {[%emt 0:00:34]} Be8 {[%emt 0:05:57]} 18. Be4 {[%emt 0:00:57]} Bg6 {[%emt 0:04:34]} 19. Bxg6 {[%emt 0:00:33]} Nxg6 {[%emt 0:00:27]} 20. Nh5 {[%emt 0:00:32]} Nf4 {[%emt 0:00:32]} 21. Bxf4 {[%emt 0:00:43]} gxf4 {[%emt 0:01:08]} 22. Nxf6+ {[%emt 0:00:43]} Qxf6 {[%emt 0:00:29]} 23. Qf3 {[%emt 0:02:25]} Rf8 {[%emt 0:01:39]} 24. Rfe1 {[%emt 0:02:03]} Qg6 {[%emt 0:04:38]} 25. Kh2 {[%emt 0:02:13]} b6 {[%emt 0:01:42]} 26. Re4 {[%emt 0:01:28]} Bf6 {[%emt 0:01:02]} 27. b4 {[%emt 0:01:09]} Bh4 {[%emt 0:01:34]} 28. Re2 {[%emt 0:00:58]} Re8 {[%emt 0:01:25]} 29. Rae1 {[%emt 0:00:51]} Bf6 {[%emt 0:01:07]} 30. Re4 {[%emt 0:00:41]} Kf7 {[%emt 0:00:33]} 31. c5 {[%emt 0:00:42]} Be7 {[%emt 0:00:29]} 32. Qe2 {[%emt 0:01:14]} Bd8 $18 {[%emt 0:00:31]} 33. cxb6 {[%emt 0:00:51]} cxb6 {[%emt 0:00:30]} 34. Rxf4+ {[%emt 0:00:26]} Kg7 {[%emt 0:00:31]} 35. Rf5 {[%emt 0:00:47]} Bf6 {[%emt 0:00:30]} 36. Qc4 {[%emt 0:01:04]} Qf7 {[%emt 0:00:26]} 37. Qc6 {[%emt 0:00:51]} Qe7 {[%emt 0:00:27]} 38. Re4 {[%emt 0:00:49]} Qd8 {[%emt 0:00:36]} 39. Rc4 {[%emt 0:00:56]} Re7 {[%emt 0:00:20]} 40. Kg2 {[%emt 0:00:41]} Rf7 {[%emt 0:30:30]} 41. Qc8 {[%emt 0:30:34]} Qd7 {[%emt 0:00:40]} 42. Qxd7 {[%emt 0:00:46]} Rxd7 {[%emt 0:00:20]} 43. Kf3 {[%emt 0:00:54]} Re7 {[%emt 0:00:40]} 44. Ke4 {[%emt 0:00:26]} Rd7 {[%emt 0:00:28]} 45. Rc8 {[%emt 0:00:50]} Rb7 {[%emt 0:00:31]} 46. b5 {[%emt 0:00:51]} Rd7 {[%emt 0:00:25]} 47. Rf3 {[%emt 0:00:24]} Kg6 {[%emt 0:00:37]} 48. Rfc3 {[%emt 0:01:23]} Bd8 {[%emt 0:00:24]} 49. R3c6 {[%emt 0:01:30]} Kg5 {[%emt 0:00:33]} 50. Rc3 {[%emt 0:01:01]} Kg6 {[%emt 0:00:21]} 51. f3 {[%emt 0:00:45]} Kg5 {[%emt 0:00:26]} 52. h4+ {[%emt 0:00:59]} Kg6 {[%emt 0:00:43]} 53. R3c6 {[%emt 0:00:36]} Kg7 {[%emt 0:00:26]} 54. Kf5 {[%emt 0:00:51]} Kf7 {[%emt 0:00:35]} 55. g5 {[%emt 0:00:28]} hxg5 {[%emt 0:00:22]} 56. hxg5 {[%emt 0:00:22]} Ke8 {[%emt 0:00:34]} 57. g6 {[%emt 0:00:36]} Ke7 {[%emt 0:00:29]} 58. g7 {[%emt 0:00:32]} Kf7 {[%emt 0:00:21]} 59. g8=Q+ {[%emt 0:00:30]} Kxg8 {[%emt 0:00:21]} 60. Ke6 {[%emt 0:00:30]} Re7+ {[%emt 0:00:34]} 61. Kxd6 {[%emt 0:00:29]} 1-0

[Event "Israel Team Ch Under 18"]
[Site "Jerusalem"]
[Date "2017.08.14"]
[Round "5"]
[White "Aroesti, Roee"]
[Black "Kupervaser, Erez"]
[Result "0-1"]
[ECO "B52"]
[WhiteElo "2304"]
[BlackElo "1868"]
[Annotator "NA"]
[PlyCount "96"]
[EventDate "2017.??.??"]
[EventType "swiss"]
[EventCountry "ISR"]
[SourceTitle "playchess.com"]
[Source "ChessBase"]
[SourceQuality "1"]
[TimeControl "40/5400+30:1800+30"]

1. e4 {[%emt 0:40:13]} c5 {[%emt 0:40:45]} 2. Nf3 {[%emt 0:00:23]} d6 {[%emt 0:00:26]} 3. Bb5+ {[%emt 0:00:47]} Bd7 {[%emt 0:00:48]} 4. Bxd7+ Qxd7 {[%emt 0:00:33]} 5. c4 {[%emt 0:00:51]} Nf6 {[%emt 0:00:36]} 6. Nc3 {[%emt 0:00:25]} g6 {[%emt 0:00:25] B52: Sicilian: Moscow Variation with 3...Bd7} 7. d4 {[%emt 0:00:28]} cxd4 {[%emt 0:00:35]} 8. Nxd4 {[%emt 0:00:27]} Bg7 {[%emt 0:00:37]} 9. f3 {[%emt 0:00:23]} Qc7 {[%emt 0:02:13] LiveBook: 19 Games} 10. Be3 {[%emt 0:03:21]} (10. b3 Qa5 11. Bd2 Nc6 12. Nd5 Qd8 13. Bc3 e6 14. Nxc6 bxc6 {½-½ (30) Ni,H (2674)-Li,C (2720) China 2017}) 10... Qxc4 {[%emt 0:03:20]} 11. Rc1 {[%emt 0:00:55]} Qb4 {[%emt 0:04:29]} 12. Nb3 {[%emt 0:09:23]} Na6 {[%emt 0:04:53]} 13. O-O {[%emt 0:05:30]} Nc5 $146 {[%emt 0:06:32]} ({Find the theoretical novelty and annotate with similar games:} 13... O-O 14. a3 {0-1 (36) Olsarova,K (2274)-Petrukhina,I (2156) Plovdiv 2014}) 14. e5 {[%emt 0:02:02]} Nxb3 {[%emt 0:10:16]} 15. exf6 {[%emt 0:00:36]} Nxc1 {[%emt 0:01:29]} 16. fxg7 {[%emt 0:00:31]} Rg8 {[%emt 0:00:26]} 17. Qxc1 {[%emt 0:03:28]} Rc8 {[%emt 0:01:40]} 18. Re1 {[%emt 0:10:26]} Rxg7 {[%emt 0:05:28]} 19. Bh6 {[%emt 0:00:21]} ({Less strong is} 19. Bxa7 f5 $18) 19... Rg8 {[%emt 0:01:00]} 20. Qe3 {[%emt 0:02:55]} Qc5 {[%emt 0:03:40] [#]} 21. Qxc5 {[%emt 0:00:37]} (21. Bg5 $1 $16) 21... Rxc5 {[%emt 0:01:02]} 22. Ne4 {[%emt 0:01:35]} (22. Be3 $5 {[%cal Re3c5]} Ra5 23. b4 $11) 22... Re5 {[%emt 0:00:44]} 23. Bf4 {[%emt 0:00:53]} Re6 $11 {[%emt 0:01:42]} 24. Kf2 {[%emt 0:04:01]} d5 {[%emt 0:01:41]} 25. Nc3 {[%emt 0:00:46]} Rxe1 {[%emt 0:00:30]} 26. Kxe1 {[%emt 0:00:21]} e6 {[%emt 0:00:21]} 27. Nb5 {[%emt 0:00:50]} Ke7 {[%emt 0:00:55]} 28. Nxa7 {[%emt 0:00:54]} Ra8 {[%emt 0:00:49]} 29. Be3 {[%emt 0:00:21]} e5 {[%emt 0:00:33]} 30. Bc5+ {[%emt 0:00:41]} Kd7 {[%emt 0:00:42]} 31. a4 {[%emt 0:00:44]} d4 {[%emt 0:00:50]} 32. b4 {[%emt 0:04:30]} Ke6 {[%emt 0:00:39]} 33. a5 {[%emt 0:00:21]} Kd5 {[%emt 0:01:01]} 34. Nb5 {[%emt 0:00:55]} Rc8 {[%emt 0:00:42]} 35. Nd6 {[%emt 0:01:51]} Rc7 {[%emt 0:00:56]} 36. g4 {[%emt 0:00:43]} f6 {[%emt 0:01:12]} 37. Kd2 {[%emt 0:01:33]} Ke6 {[%emt 0:02:42]} 38. h4 {[%emt 0:03:03]} f5 {[%emt 0:00:29]} 39. g5 {[%emt 0:00:28]} Kd5 {[%emt 0:00:49]} 40. Ne8 {[%emt 0:00:29]} Rf7 {[%emt 0:30:46]} 41. Nd6 {[%emt 0:30:34]} Rd7 {[%emt 0:00:26]} 42. Nc8 {[%emt 0:00:21]} Rd8 {[%emt 0:00:46]} 43. Nd6 {[%emt 0:00:38]} Rxd6 {[%emt 0:00:48]} 44. Bxd6 {[%emt 0:00:21]} Kxd6 {[%emt 0:00:21]} 45. Kd3 {[%emt 0:00:36]} Kd5 {[%emt 0:00:24]} 46. b5 {[%emt 0:00:21]} e4+ {[%emt 0:00:36]} 47. Ke2 {[%emt 0:00:53]} Kc5 {[%emt 0:00:25]} 48. a6 {[%emt 0:00:24]} bxa6 {[%emt 0:00:22]} 0-1

[Event "Israel Team Ch Under 18"]
[Site "Jerusalem"]
[Date "2017.08.14"]
[Round "5"]
[White "Cohen Revivo, Shoham"]
[Black "Zemach, Roee"]
[Result "1/2-1/2"]
[ECO "C55"]
[WhiteElo "2186"]
[BlackElo "1996"]
[Annotator "NA"]
[PlyCount "57"]
[EventDate "2017.??.??"]
[EventType "swiss"]
[EventCountry "ISR"]
[SourceTitle "playchess.com"]
[Source "ChessBase"]
[SourceQuality "1"]
[TimeControl "40/5400+30:1800+30"]

1. e4 {[%emt 0:40:13]} e5 {[%emt 0:40:51]} 2. Nf3 {[%emt 0:00:27]} Nc6 {[%emt 0:00:41]} 3. Bc4 {[%emt 0:00:33]} Nf6 {[%emt 0:00:49]} 4. d3 {[%emt 0:00:26]} Be7 {[%emt 0:00:25]} 5. a4 {[%emt 0:00:42]} O-O {[%emt 0:00:57]} 6. O-O {[%emt 0:00:28]} d6 {[%emt 0:00:52]} 7. a5 {[%emt 0:00:39]} a6 {[%emt 0:00:27]} 8. Re1 {[%emt 0:00:28]} Be6 {[%emt 0:00:58]} 9. Nbd2 {[%emt 0:00:43] C55: Two Knights: 4 d3, 4 d4 exd4 5 e5 and Max Lange Attack} (9. h3 d5 10. exd5 Bxd5 11. Bxd5 Qxd5 12. Nc3 Qd6 13. Nxe5 Nxe5 14. Bf4 Nfd7 15. d4 f6 16. dxe5 fxe5 {½-½ (68) Amin,B (2665)-Gasanov,E (2485) Al Ain 2015}) 9... Re8 {[%emt 0:00:50]} 10. Nf1 {[%emt 0:01:12]} d5 $146 {[%emt 0:02:32]} ({Find the theoretical novelty and annotate with similar games:} 10... Qd7 11. c3 Bxc4 12. dxc4 Bf8 13. Bg5 Qe6 14. Bxf6 Qxf6 15. Ne3 Re6 16. Nd5 {1-0 (59) Katzir,M (2279)-Simonyi,Z (2225) Budapest 2009}) 11. exd5 {[%emt 0:02:25]} Bxd5 {[%emt 0:00:28]} 12. Bxd5 {[%emt 0:08:55]} Qxd5 {[%emt 0:00:34]} 13. Bg5 {[%emt 0:00:58]} Nd7 {[%emt 0:15:51]} 14. Ne3 {[%emt 0:04:46]} Qb5 {[%emt 0:01:58]} 15. Nf5 {[%emt 0:04:21]} Bf8 {[%emt 0:02:15]} 16. Bd2 {[%emt 0:04:01]} f6 {[%emt 0:03:21]} (16... e4 $5 17. dxe4 Nf6 $11) 17. c4 {[%emt 0:09:18]} Qxb2 {[%emt 0:02:17]} 18. Rb1 {[%emt 0:02:49]} Qa3 {[%emt 0:02:47]} 19. Rb3 {[%emt 0:00:26]} Qa4 {[%emt 0:00:43]} 20. Rxb7 {[%emt 0:00:38]} Qxd1 {[%emt 0:00:31]} 21. Rxd1 {[%emt 0:00:21]} Rac8 {[%emt 0:01:00]} 22. Be3 {[%emt 0:04:31]} Nc5 {[%emt 0:03:01]} 23. Bxc5 {[%emt 0:01:49]} Bxc5 $17 {[%emt 0:01:17]} 24. Nd2 {[%emt 0:06:53]} Nxa5 {[%emt 0:00:50]} 25. Rb2 {[%emt 0:00:21]} Nc6 {[%emt 0:01:37]} 26. Ne4 {[%emt 0:01:10]} Bf8 {[%emt 0:00:38]} 27. Ne3 {[%emt 0:01:28]} a5 {[%emt 0:03:04]} 28. Rb7 {[%emt 0:01:29]} Nb4 29. Ra7 1/2-1/2

[Event "Israel Team Ch Under 18"]
[Site "Jerusalem"]
[Date "2017.08.14"]
[Round "5"]
[White "Emanuel, Yahav"]
[Black "Sassoon, Roei"]
[Result "1-0"]
[ECO "B23"]
[WhiteElo "2146"]
[BlackElo "1779"]
[Annotator "NA"]
[PlyCount "49"]
[EventDate "2017.??.??"]
[EventType "swiss"]
[EventCountry "ISR"]
[SourceTitle "playchess.com"]
[Source "ChessBase"]
[SourceQuality "1"]
[TimeControl "40/5400+30:1800+30"]

1. e4 c5 2. Nc3 Nc6 3. f4 e6 4. Nf3 Nge7 5. d4 cxd4 6. Nxd4 Nxd4 7. Qxd4 Nc6 8. Qf2 Be7 9. Bc4 {B23: Closed Sicilian: Lines without g3} (9. Be3 Qa5 10. Qg3 O-O 11. O-O-O b5 12. Bxb5 Rb8 13. a4 a6 14. Bxc6 dxc6 15. f5 Qb4 16. Bd4 f6 {½-½ (48) Nielsen,P (2341)-Zlotkowski,A (2385) ICCF email 2007}) 9... a6 10. Be3 O-O $146 ({Predecessor:} 10... Bb4 11. Bd2 b5 12. Bd3 Ba5 13. O-O-O Bb6 14. Be3 {0-1 (31) Scriber,D-Nimylowych,W East Lansing 1991}) 11. Bb6 Qe8 12. O-O-O Bd8 13. Rhe1 Bxb6 14. Qxb6 Qd8 15. Na4 Qh4 16. g3 Qxh2 17. Qe3 Qh5 18. Nb6 Rb8 19. e5 Ne7 20. Rh1 Nf5 21. Qf2 Qg4 22. Rdg1 Nh6 23. Bd3 Nf5 24. Be2 $18 Qg6 25. Bh5 1-0

[Event "Israel Team Ch Under 18"]
[Site "Jerusalem"]
[Date "2017.08.14"]
[Round "5"]
[White "Milikow, Yoav"]
[Black "Fainman, Tomer"]
[Result "1-0"]
[ECO "D12"]
[WhiteElo "2137"]
[BlackElo "1976"]
[Annotator "NA"]
[PlyCount "105"]
[EventDate "2017.??.??"]
[EventType "swiss"]
[EventCountry "ISR"]
[SourceTitle "playchess.com"]
[Source "ChessBase"]
[SourceQuality "1"]
[TimeControl "40/5400+30:1800+30"]

1. d4 {[%emt 0:40:16]} d5 {[%emt 0:40:45]} 2. c4 {[%emt 0:01:00]} c6 {[%emt 0:00:25]} 3. Nf3 {[%emt 0:00:25]} Nf6 {[%emt 0:00:28]} 4. e3 {[%emt 0:00:28]} Bf5 {[%emt 0:00:36]} 5. Nc3 {[%emt 0:00:31]} e6 {[%emt 0:00:29]} 6. cxd5 {[%emt 0:02:29]} exd5 {[%emt 0:00:30]} 7. Be2 {[%emt 0:02:08]} Bd6 {[%emt 0:00:28] D12: Slav Defence: 3 Nf3 Nf6 4 e3 Bf5} 8. Qb3 {[%emt 0:02:13]} Qb6 {[%emt 0:01:14]} 9. Na4 $146 {[%emt 0:00:53]} ({Predecessor:} 9. Bd2 Nbd7 10. O-O Ne4 11. Be1 h6 12. Rc1 O-O 13. Na4 Qxb3 14. axb3 Rfe8 15. b4 {0-1 (48) Serra Pages,J (2191)-Baron Rodriguez,J (2384) Barcelona 2000}) 9... Qxb3 {[%emt 0:00:44]} 10. axb3 {[%emt 0:00:32]} Nbd7 {[%emt 0:00:28]} 11. O-O {[%emt 0:01:48]} h6 {[%emt 0:00:37]} 12. Ne1 {[%emt 0:03:10]} O-O {[%emt 0:01:21]} 13. Nd3 {[%emt 0:01:33]} Ne4 {[%emt 0:01:31]} 14. f3 {[%emt 0:01:14]} Nef6 {[%emt 0:01:07]} 15. Bd2 {[%emt 0:00:45]} Rfe8 {[%emt 0:01:35]} 16. Rfc1 {[%emt 0:00:57]} Bh7 {[%emt 0:05:59]} 17. Nac5 {[%emt 0:04:29]} Nxc5 {[%emt 0:01:00]} 18. Nxc5 {[%emt 0:00:31]} Bxc5 {[%emt 0:01:30]} 19. Rxc5 {[%emt 0:00:37]} Nd7 {[%emt 0:01:29]} 20. Rc3 {[%emt 0:02:27]} a6 {[%emt 0:02:04]} 21. Kf2 {[%emt 0:02:36]} Nf8 {[%emt 0:06:21]} 22. Rcc1 {[%emt 0:04:41]} Ne6 {[%emt 0:01:02]} 23. Kf1 {[%emt 0:08:41]} Nc7 {[%emt 0:01:42]} 24. Ra4 {[%emt 0:02:28]} Ne6 {[%emt 0:04:17]} 25. Kf2 {[%emt 0:02:01]} Re7 {[%emt 0:01:27]} 26. Bb4 {[%emt 0:01:40]} Rd7 {[%emt 0:00:42]} 27. Rg1 {[%emt 0:01:34]} Bc2 {[%emt 0:00:51]} 28. Ra3 {[%emt 0:01:01]} Re8 {[%emt 0:00:45]} 29. Rc1 {[%emt 0:00:48]} Bh7 {[%emt 0:00:29]} 30. Bf1 {[%emt 0:01:34]} f5 {[%emt 0:03:57]} 31. Re1 $11 {[%emt 0:01:26]} f4 {[%emt 0:06:23]} 32. Raa1 {[%emt 0:02:23]} Rdd8 {[%emt 0:01:58]} 33. Ba5 {[%emt 0:00:49]} Rc8 {[%emt 0:00:59]} 34. Bb6 {[%emt 0:01:40]} fxe3+ {[%emt 0:05:44]} 35. Rxe3 {[%emt 0:00:42]} Nf8 {[%emt 0:00:37]} 36. Rae1 {[%emt 0:01:14]} Kf7 {[%emt 0:01:31]} 37. g3 {[%emt 0:01:03]} g5 {[%emt 0:01:16]} 38. Bh3 {[%emt 0:00:30]} Rxe3 {[%emt 0:01:04]} 39. Rxe3 {[%emt 0:00:28]} Re8 {[%emt 0:00:28]} 40. Rxe8 {[%emt 0:01:00]} Kxe8 {[%emt 0:30:29]} 41. Bc8 {[%emt 0:30:31]} Bd3 {[%emt 0:00:56]} 42. Ke3 {[%emt 0:00:55]} Bf1 {[%emt 0:00:21]} 43. Bf5 {[%emt 0:00:42]} Kf7 {[%emt 0:00:35]} 44. Bc7 {[%emt 0:00:44]} Ne6 {[%emt 0:00:27]} 45. Be5 {[%emt 0:00:22]} Bb5 {[%emt 0:01:10]} 46. Bg4 {[%emt 0:00:27]} Bf1 {[%emt 0:00:31]} 47. b4 {[%emt 0:00:50]} Bc4 {[%emt 0:00:43]} 48. f4 {[%emt 0:00:27]} b6 {[%emt 0:01:28]} 49. Bh5+ {[%emt 0:00:36]} Ke7 {[%emt 0:00:28]} 50. f5 {[%emt 0:00:29]} Nf8 {[%emt 0:00:45]} 51. Bg7 {[%emt 0:00:31]} Nh7 {[%emt 0:00:33]} 52. Bxh6 {[%emt 0:00:34]} Kf6 {[%emt 0:00:22]} 53. Bg6 {[%emt 0:00:27]} 1-0

[Event "Israel Team Ch Under 18"]
[Site "Jerusalem"]
[Date "2017.08.14"]
[Round "5"]
[White "Lukin, Elisha"]
[Black "Kotler, Yiftah"]
[Result "1-0"]
[ECO "E42"]
[WhiteElo "2085"]
[BlackElo "1715"]
[Annotator "NA"]
[PlyCount "77"]
[EventDate "2017.??.??"]
[EventType "swiss"]
[EventCountry "ISR"]
[SourceTitle "playchess.com"]
[Source "ChessBase"]
[SourceQuality "1"]
[TimeControl "40/5400+30:1800+30"]

1. d4 {[%emt 0:40:18]} Nf6 {[%emt 0:41:06]} 2. c4 {[%emt 0:00:31]} e6 {[%emt 0:00:23]} 3. Nc3 {[%emt 0:00:32]} Bb4 {[%emt 0:00:23]} 4. e3 {[%emt 0:01:24]} c5 {[%emt 0:01:08]} 5. Nge2 {[%emt 0:00:59]} b6 {[%emt 0:02:11]} 6. a3 {[%emt 0:03:01]} Bxc3+ {[%emt 0:02:00]} 7. Nxc3 {[%emt 0:00:23]} O-O {[%emt 0:01:22]} 8. Bd3 {[%emt 0:04:58]} Bb7 {[%emt 0:00:31]} 9. O-O {[%emt 0:02:18]} d5 {[%emt 0:01:56]} 10. cxd5 {[%emt 0:03:45]} exd5 {[%emt 0:01:22]} 11. Ne2 {[%emt 0:09:23] E44: Nimzo-Indian: Rubinstein: 4...b6 5 Ne2} (11. b4 cxd4 12. exd4 Ne4 13. Bxe4 dxe4 14. d5 Qf6 15. Bb2 Nd7 16. Qg4 Rad8 17. Qxe4 Qg5 18. f4 Qh5 {½-½ (45) Milov,V (2659)-Kortschnoj,V (2606) Switzerland 2007}) 11... Nbd7 $146 {[%emt 0:01:26]} ({Find the theoretical novelty and annotate with similar games:} 11... Nc6 12. Bd2 Qe7 13. Rc1 Rfc8 14. f3 a5 15. Re1 c4 16. Bb1 b5 17. e4 dxe4 18. fxe4 Qd7 {½-½ (116) Lee,K (1959)-Kebbedies,F (1842) Ho Chi Minh City 2015}) 12. dxc5 {[%emt 0:02:18]} bxc5 {[%emt 0:00:30]} 13. b4 {[%emt 0:01:05]} Rc8 {[%emt 0:04:13]} 14. Bb2 {[%emt 0:00:59]} Qb6 {[%emt 0:04:36]} 15. Rb1 {[%emt 0:04:36]} c4 {[%emt 0:11:50]} 16. Bf5 {[%emt 0:02:13]} a6 {[%emt 0:02:16]} (16... Ra8 $16) 17. Qc2 {[%emt 0:05:48]} (17. Bxf6 $1 $18 Nxf6 18. Bxc8 Rxc8 19. Qd4) 17... Rc7 {[%emt 0:04:26]} 18. Bd4 {[%emt 0:01:49]} Qd6 {[%emt 0:03:19]} 19. Ng3 {[%emt 0:01:11]} Re8 $16 {[%emt 0:02:58]} 20. Rfd1 {[%emt 0:03:15]} g6 {[%emt 0:03:55]} 21. Bh3 {[%emt 0:00:28]} Ne5 {[%emt 0:01:03]} 22. Qc3 {[%emt 0:01:22]} Bc8 {[%emt 0:02:38]} 23. Bxc8 {[%emt 0:02:03]} Rcxc8 {[%emt 0:00:25]} 24. a4 {[%emt 0:00:35]} Nfd7 {[%emt 0:02:11]} 25. b5 {[%emt 0:00:52]} axb5 {[%emt 0:00:43]} 26. axb5 {[%emt 0:00:25]} Rb8 {[%emt 0:01:24]} 27. Ne2 {[%emt 0:01:50]} f5 {[%emt 0:01:00]} 28. Nf4 {[%emt 0:00:34]} Nf6 {[%emt 0:00:53]} 29. f3 {[%emt 0:00:46]} Rb7 {[%emt 0:00:45]} 30. b6 {[%emt 0:00:48]} Kf7 {[%emt 0:00:38]} 31. Rb5 {[%emt 0:00:48]} g5 {[%emt 0:00:59]} 32. Ne2 {[%emt 0:01:03]} h5 {[%emt 0:00:51]} 33. Qc2 {[%emt 0:01:28]} Qd7 {[%emt 0:00:48]} 34. Ra5 {[%emt 0:00:38]} Re7 {[%emt 0:00:37]} 35. Ng3 {[%emt 0:00:44]} Kg6 {[%emt 0:00:33]} 36. Qc3 {[%emt 0:00:39]} Qe6 {[%emt 0:00:40]} 37. h4 {[%emt 0:00:23]} gxh4 {[%emt 0:00:28]} 38. Ne2 {[%emt 0:00:23]} Nc6 {[%emt 0:00:41]} 39. Nf4+ {[%emt 0:00:21]} 1-0

[Event "Israel Team Ch Under 18"]
[Site "Jerusalem"]
[Date "2017.08.14"]
[Round "5"]
[White "Shohat, Yotam"]
[Black "Friedland, Moshe"]
[Result "1/2-1/2"]
[ECO "B90"]
[WhiteElo "2041"]
[BlackElo "2264"]
[Annotator "NA"]
[PlyCount "55"]
[EventDate "2017.??.??"]
[EventType "swiss"]
[EventCountry "ISR"]
[SourceTitle "playchess.com"]
[Source "ChessBase"]
[SourceQuality "1"]
[TimeControl "40/5400+30:1800+30"]

1. e4 {[%emt 0:40:28]} c5 {[%emt 0:40:44]} 2. Nf3 {[%emt 0:00:26]} d6 {[%emt 0:00:24]} 3. d4 {[%emt 0:00:25]} cxd4 {[%emt 0:00:30]} 4. Nxd4 {[%emt 0:00:30]} Nf6 {[%emt 0:00:30]} 5. Nc3 {[%emt 0:00:30]} a6 {[%emt 0:00:30]} 6. a3 {[%emt 0:00:40]} e5 {[%emt 0:07:00]} 7. Nf5 {[%emt 0:02:27]} d5 {[%emt 0:02:55]} 8. Bg5 {[%emt 0:00:48]} d4 {[%emt 0:01:01]} 9. Bxf6 {[%emt 0:00:36]} Qxf6 {[%emt 0:00:21]} 10. Nd5 {[%emt 0:01:21]} Qd8 11. Qg4 Bxf5 {[%emt 0:12:21]} 12. Qxf5 {[%emt 0:01:16]} Bd6 {[%emt 0:00:29]} 13. Bc4 {[%emt 0:03:12]} O-O {[%emt 0:00:26]} 14. h4 {[%emt 0:02:33]} Nc6 {[%emt 0:03:20]} 15. h5 {[%emt 0:07:29]} Ne7 {[%emt 0:08:34]} 16. Qf3 {[%emt 0:05:56]} Nxd5 {[%emt 0:01:59]} 17. Bxd5 {[%emt 0:00:55]} Qa5+ {[%emt 0:02:53]} 18. Kd1 {[%emt 0:01:09]} h6 {[%emt 0:01:20]} 19. Rh3 {[%emt 0:07:41]} Kh8 {[%emt 0:06:59]} 20. Qf5 {[%emt 0:03:30]} Qb5 {[%emt 0:04:32]} 21. Ra2 {[%emt 0:06:30]} Qf1+ {[%emt 0:01:27]} 22. Kd2 {[%emt 0:01:05]} Be7 {[%emt 0:00:20]} 23. Rg3 {[%emt 0:00:59]} Bg5+ {[%emt 0:00:56]} 24. Rxg5 {[%emt 0:00:22]} hxg5 {[%emt 0:00:21]} 25. h6 {[%emt 0:04:05]} Qxg2 {[%emt 0:01:44]} 26. Bxf7 {[%emt 0:01:24]} Rxf7 {[%emt 0:01:02]} 27. Qxf7 {[%emt 0:00:30]} gxh6 {[%emt 0:00:24]} 28. Qf6+ {[%emt 0:00:40]} 1/2-1/2

[Event "Israel Team Ch Under 18"]
[Site "Jerusalem"]
[Date "2017.08.14"]
[Round "5"]
[White "Solomon, Asif"]
[Black "Weintraub, Amit"]
[Result "1-0"]
[ECO "A43"]
[WhiteElo "2041"]
[BlackElo "1801"]
[Annotator "NA"]
[PlyCount "39"]
[EventDate "2017.??.??"]
[EventType "swiss"]
[EventCountry "ISR"]
[SourceTitle "playchess.com"]
[Source "ChessBase"]
[SourceQuality "1"]
[TimeControl "40/5400+30:1800+30"]

1. d4 {[%emt 0:40:22]} g6 {[%emt 0:40:45]} 2. c4 {[%emt 0:00:32]} Bg7 {[%emt 0:00:24]} 3. Nc3 {[%emt 0:00:34]} c5 {[%emt 0:00:30]} 4. d5 {[%emt 0:00:32]} Bxc3+ {[%emt 0:00:27]} 5. bxc3 {[%emt 0:00:26]} f5 {[%emt 0:00:25]} 6. Qc2 {[%emt 0:04:38]} Nf6 {[%emt 0:01:18]} 7. f3 {[%emt 0:02:05]} Qa5 {[%emt 0:00:41]} 8. Bd2 {[%emt 0:03:22]} d6 {[%emt 0:01:53]} 9. e4 {[%emt 0:02:25]} fxe4 {[%emt 0:00:34]} 10. fxe4 {[%emt 0:00:42]} Nbd7 {[%emt 0:00:25]} 11. Nf3 {[%emt 0:01:22]} Nb6 {[%emt 0:01:20]} 12. Bd3 {[%emt 0:01:43]} e5 {[%emt 0:06:29]} 13. O-O {[%emt 0:03:15]} O-O {[%emt 0:06:36]} 14. Bh6 {[%emt 0:01:30]} Bd7 {[%emt 0:00:55]} 15. Bxf8 {[%emt 0:02:01]} Rxf8 {[%emt 0:00:23]} 16. Nd2 {[%emt 0:02:14]} Kg7 17. Rf2 {[%emt 0:04:44]} Ng4 {[%emt 0:11:46]} 18. Rxf8 {[%emt 0:01:02]} Ne3 {[%emt 0:00:29]} 19. Qc1 {[%emt 0:00:41]} Kxf8 {[%emt 0:01:41]} 20. Nb3 {[%emt 0:00:37]} 1-0

[Event "Israel Team Ch Under 18"]
[Site "Jerusalem"]
[Date "2017.08.14"]
[Round "5"]
[White "Feldman, Antony"]
[Black "Landau, Amit"]
[Result "1/2-1/2"]
[ECO "A16"]
[WhiteElo "1975"]
[BlackElo "1965"]
[Annotator "NA"]
[PlyCount "46"]
[EventDate "2017.??.??"]
[EventType "swiss"]
[EventCountry "ISR"]
[SourceTitle "playchess.com"]
[Source "ChessBase"]
[SourceQuality "1"]
[TimeControl "40/5400+30:1800+30"]

1. c4 {[%emt 0:40:35]} Nf6 {[%emt 0:40:59]} 2. Nc3 {[%emt 0:00:29]} c6 {[%emt 0:00:47]} 3. Nf3 {[%emt 0:02:08]} d5 {[%emt 0:00:55]} 4. e3 {[%emt 0:00:22]} e6 {[%emt 0:01:13]} 5. b3 {[%emt 0:00:30]} Nbd7 {[%emt 0:00:35]} 6. Bb2 {[%emt 0:02:58]} Bd6 {[%emt 0:00:51]} 7. d4 {[%emt 0:03:10]} O-O {[%emt 0:01:03]} 8. Bd3 {[%emt 0:01:09]} b6 {[%emt 0:03:30]} 9. O-O {[%emt 0:07:02]} Bb7 10. e4 {[%emt 0:00:34]} dxe4 {[%emt 0:02:28]} 11. Nxe4 {[%emt 0:00:30]} Be7 {[%emt 0:02:38]} 12. Ng3 {[%emt 0:01:48]} c5 {[%emt 0:02:24]} 13. Bc2 {[%emt 0:01:45]} Qc7 14. Qe2 {[%emt 0:00:44]} Bd6 {[%emt 0:03:05]} 15. Rad1 {[%emt 0:01:20]} Rad8 {[%emt 0:01:33]} 16. Rfe1 {[%emt 0:00:30]} Rfe8 {[%emt 0:00:30]} 17. Bb1 {[%emt 0:04:39]} Qc6 {[%emt 0:09:54]} 18. Qd3 {[%emt 0:02:30]} cxd4 {[%emt 0:00:30]} 19. Bxd4 {[%emt 0:00:30]} Bc7 {[%emt 0:00:30]} 20. Ne4 {[%emt 0:00:30]} Nxe4 {[%emt 0:00:30]} 21. Qxe4 {[%emt 0:00:30]} Qxe4 {[%emt 0:06:56]} 22. Bxe4 {[%emt 0:16:46]} Bxe4 {[%emt 0:00:31]} 23. Rxe4 {[%emt 0:00:22]} e5 {[%emt 0:00:43]} 1/2-1/2